bitfinex-derivatives/quotes_SOLF0:USTF0_20250820
["timestamp","ask_amount","ask_price","bid_price","bid_amount"]
[1755701722787,4.79322408,181.73,181.61,2.82]
[1755701722992,7.29322408,181.73,181.61,2.82]
[1755701723189,4.79322408,181.73,181.61,2.82]
[1755701723394,7.29322408,181.77,181.61,2.82]
[1755701723693,2.5,181.77,181.68,2.82]
[1755701723995,2.5,181.77,181.71,5.5029]
[1755701724389,2.5,181.77,181.68,2.82]
[1755701724590,145.82,181.81,181.68,2.82]
[1755701725296,145.82,181.81,181.64,62.0]
[1755701725297,145.82,181.81,181.71,2.82]
[1755701725693,2.5,181.82,181.71,2.82]
[1755701726193,515.4,181.83,181.75,2.91]
[1755701726589,145.8,181.83,181.75,2.91]
[1755701727098,145.8,181.83,181.76,38.88]
[1755701728294,145.8,181.83,181.81,5.5]
[1755701728502,145.8,181.83,181.76,38.88]
[1755701728896,2.5,181.82,181.78,5.5008]
[1755701729800,2.5,181.82,181.76,38.88]
[1755701730602,2.5,181.82,181.76,44.3815]
[1755701730798,2.5,181.82,181.76,38.88]
[1755701731194,145.8,181.83,181.76,41.79]
[1755701731397,145.72,181.86,181.76,41.79]
[1755701732401,2.5,181.84,181.77,5.5011]
[1755701732802,2.5,181.84,181.76,38.88]
[1755701734001,4.79322408,181.81,181.76,38.88]
[1755701734203,2.5,181.77,181.66,2.91]
[1755701734405,145.68,181.76,181.66,2.91]
[1755701734809,7.29322408,181.77,181.66,2.91]
[1755701735010,7.29322408,181.77,181.69,5.5038]
[1755701735410,7.29322408,181.77,181.66,2.91]
[1755701735411,145.66,181.76,181.66,2.91]
[1755701735712,2.5,181.75,181.65,96.88]
[1755701735901,4.79322408,181.73,181.65,96.88]
[1755701736101,4.79322408,181.73,181.66,5.5047]
[1755701736300,4.79322408,181.73,181.65,96.88]
[1755701736808,4.79322408,181.73,181.65,99.79]
[1755701737408,4.79322408,181.73,181.67,5.5043]
[1755701737609,4.79322408,181.69,181.65,96.88]
[1755701737809,2.5,181.68,181.6,5.5065]
[1755701738303,2.5,181.68,181.61,15.1062]
[1755701738499,2.5,181.68,181.61,9.6]
[1755701741807,2.5,181.68,181.61,15.1062]
[1755701742222,2.5,181.68,181.61,9.6]
[1755701742816,2.5,181.68,181.62,5.5059]
[1755701743615,2.5,181.68,181.61,15.1061]
[1755701743814,4.79322408,181.69,181.62,2.91]
[1755701744015,2.5,181.73,181.62,2.91]
[1755701744016,145.64,181.71,181.62,2.91]
[1755701744821,7.29322408,181.73,181.62,2.91]
[1755701745116,7.29322408,181.77,181.62,2.91]
[1755701745313,145.62,181.76,181.62,2.91]
[1755701745512,2.5,181.75,181.62,2.91]
[1755701745714,2.5,181.75,181.68,5.5038]
[1755701745913,2.5,181.75,181.66,2.91]
[1755701746314,372.22,181.8,181.67,2.91]
[1755701747522,372.22,181.8,181.74,5.5021]
[1755701748217,372.22,181.8,181.75,5.5019]
[1755701748416,372.22,181.8,181.75,2.91]
[1755701748814,2.5,181.79,181.74,5.5022]
[1755701749016,2.5,181.79,181.71,2.91]
[1755701749214,2.5,181.79,181.61,9.6]
[1755701749417,2.5,181.76,181.62,2.91]
[1755701749617,145.58,181.75,181.62,2.91]
[1755701749919,145.58,181.75,181.69,5.5036]
[1755701750515,145.58,181.75,181.68,5.5041]
[1755701750720,145.58,181.75,181.66,2.91]
[1755701751622,2.5,181.74,181.61,9.6]
[1755701751926,162.07,181.75,181.61,9.6]
[1755701751927,4.79322408,181.7,181.61,9.6]
[1755701752116,4.79322408,181.7,181.61,15.1062]
[1755701752117,7.29322408,181.7,181.61,15.1062]
[1755701752316,7.29322408,181.7,181.61,9.6]
[1755701752716,145.54,181.69,181.61,9.6]
[1755701752918,7.29322408,181.74,181.62,2.91]
[1755701753126,145.54,181.73,181.62,2.91]
[1755701753514,152.81322408,181.74,181.62,2.91]
[1755701753916,4.79322408,181.74,181.62,2.91]
[1755701754120,145.52,181.74,181.62,2.91]
[1755701754420,145.52,181.74,181.67,5.5042]
[1755701754623,145.52,181.74,181.62,2.91]
[1755701755723,145.52,181.74,181.66,3.01]
[1755701756120,2.5,181.77,181.66,3.01]
[1755701756321,145.52,181.76,181.69,5.5038]
[1755701756724,145.52,181.76,181.66,3.01]
[1755701757223,2.51,181.75,181.61,12.61]
[1755701757428,2.51,181.75,181.64,5.5051]
[1755701758127,2.51,181.74,181.61,12.61]
[1755701758524,2.51,181.74,181.63,5.5055]
[1755701758723,2.51,181.74,181.61,12.61]
[1755701759121,2.51,181.74,181.61,9.6]
[1755701759928,2.51,181.69,181.61,9.6]
[1755701760131,145.5,181.68,181.61,9.6]
[1755701760425,2.51,181.67,181.61,9.6]
[1755701760829,2.51,181.64,181.56,20.6]
[1755701761033,10.62553472,181.6,181.51,0.95847965]
[1755701761331,10.62553472,181.6,181.49,3.01]
[1755701761332,145.48,181.59,181.49,3.01]
[1755701763032,10.62553472,181.6,181.49,3.01]
[1755701763330,145.48,181.59,181.49,3.01]
[1755701763939,10.62553472,181.6,181.49,3.01]
[1755701764234,145.5,181.59,181.49,3.01]
[1755701765034,2.51,181.64,181.49,3.01]
[1755701765431,147.99,181.64,181.49,3.01]
[1755701765633,145.48,181.64,181.49,3.01]
[1755701766532,145.48,181.64,181.58,5.507]
[1755701767430,145.48,181.64,181.45,9.07414639]
[1755701767736,515.38,181.66,181.47,3.01]
[1755701768223,6.03184447,181.77,181.45,13.46226846]
[1755701768224,2.51,181.75,181.62,3.01]
[1755701768427,145.48,181.74,181.62,3.01]
[1755701769234,145.48,181.74,181.69,5.5037]
[1755701769437,145.48,181.74,181.55,8.11553472]
[1755701769438,145.48,181.74,181.65,3.01]
[1755701769737,370.04,181.76,181.67,3.01]
[1755701769935,518.01,181.76,181.67,3.01]
[1755701770236,518.01,181.76,181.66,5.5047]
[1755701770429,523.61553472,181.76,181.63,3.01]
[1755701770630,2.51,181.75,181.63,3.01]
[1755701770836,2.51,181.75,181.5,157.96365679]
[1755701770837,5.5044,181.68,181.51,3.01]
[1755701771040,150.9644,181.68,181.51,3.01]
[1755701771230,145.46,181.68,181.51,3.01]
[1755701771533,145.46,181.68,181.47,11.0206]
[1755701771534,2.51,181.67,181.6,5.5063]
[1755701771737,2.51,181.67,181.54,3.01]
[1755701772528,8.11553472,181.66,181.54,3.01]
[1755701773032,2.51,181.64,181.45,370.99861167]
[1755701773338,5.5065,181.61,181.55,5.508]
[1755701773540,2.51,181.64,181.55,5.508]
[1755701774241,2.51,181.6,181.5,3.01]
[1755701774541,147.91,181.6,181.5,3.01]
[1755701775141,2.51,181.65,181.5,3.01]
[1755701775336,145.4,181.63,181.5,3.01]
[1755701775641,2.51,181.62,181.5,3.01]
[1755701776139,5.5074,181.58,181.5,3.01]
[1755701776639,5.5074,181.58,181.52,5.5087]
[1755701776939,5.5074,181.58,181.5,3.01]
[1755701777637,147.91,181.62,181.5,3.01]
[1755701779041,5.5065,181.61,181.5,3.01]
[1755701779338,2.51,181.62,181.5,3.01]
[1755701779837,5.5063,181.61,181.55,5.5078]
[1755701780237,8.11553472,181.66,181.45,370.99861167]
[1755701780547,145.38,181.65,181.46,3.01]
[1755701781242,5.5066,181.6,181.56,5.5075]
[1755701781442,2.51,181.6,181.52,3.01]
[1755701781840,2.51,181.6,181.55,5.5078]
[1755701781841,8.0168,181.6,181.55,5.5078]
[1755701782344,2.51,181.6,181.52,3.01]
[1755701783341,5.5071,181.59,181.55,5.5081]
[1755701783537,2.51,181.62,181.46,3.01]
[1755701784145,2.5,181.6,181.46,3.01]
[1755701785441,8.0068,181.6,181.55,5.5078]
[1755701785648,2.5,181.6,181.5,3.01]
[1755701785945,5.5072,181.58,181.53,5.5084]
[1755701786246,8.0072,181.58,181.53,5.5084]
[1755701786444,5.5063,181.61,181.57,5.5074]
[1755701786646,370.1,181.63,181.57,3.0]
[1755701787044,5.506,181.62,181.57,8.5072]
[1755701787248,5.506,181.62,181.57,3.0]
[1755701787551,370.1,181.63,181.57,3.0]
[1755701788252,2.5,181.62,181.52,3.0]
[1755701789455,2.5,181.62,181.54,5.5083]
[1755701789752,2.5,181.62,181.45,3.95861167]
[1755701789948,145.3,181.61,181.5,5.5093]
[1755701790148,2.5,181.6,181.5,5.5093]
[1755701790654,145.3,181.59,181.46,3.0]
[1755701791054,145.3,181.59,181.53,5.5085]
[1755701791556,145.3,181.59,181.49,3.0]
[1755701792655,145.28,181.58,181.49,3.0]
[1755701793255,145.28,181.58,181.55,5.5078]
[1755701793454,370.1,181.63,181.49,3.0]
[1755701793757,145.28,181.62,181.49,3.0]
[1755701794351,145.28,181.61,181.49,3.0]
[1755701794750,150.7668,181.6,181.53,3.0]
[1755701795153,145.26,181.6,181.57,5.5073]
[1755701795353,150.7663,181.61,181.57,5.5073]
[1755701795649,372.6,181.63,181.59,5.5068]
[1755701795854,515.36,181.63,181.53,3.0]
[1755701796257,8.11553472,181.62,181.45,3.95861167]
[1755701796458,2.5,181.61,181.46,3.0]
[1755701796664,145.26,181.6,181.46,3.0]
[1755701797053,7.30832559,181.59,181.46,3.0]
[1755701797463,5.5084,181.54,181.51,5.5092]
[1755701797662,5.5084,181.54,181.46,3.0]
[1755701797861,7.30832559,181.59,181.46,3.0]
[1755701798057,7.30832559,181.59,181.5,8.5094]
[1755701798263,7.30832559,181.59,181.46,3.0]
[1755701798660,5.509,181.52,181.49,5.5098]
[1755701798861,7.30832559,181.59,181.46,3.0]
[1755701799060,5.5092,181.52,181.48,5.5101]
[1755701799266,381.1118,181.63,181.45,0.95861167]
[1755701799267,147.74,181.54,181.45,0.95861167]
[1755701799464,147.74,181.54,181.42,3.0]
[1755701799664,147.74,181.54,181.44,5.5112]
[1755701800163,5.5104,181.48,181.44,5.5112]
[1755701800363,5.5104,181.48,181.45,5.511]
[1755701800763,147.74,181.54,181.42,3.0]
[1755701800964,147.74,181.54,181.45,5.5109]
[1755701801168,5.5095,181.51,181.42,3.0]
[1755701801473,7.30832559,181.54,181.48,5.5102]
[1755701801767,145.22,181.53,181.42,3.0]
[1755701801967,7.30832559,181.54,181.5,5.5095]
[1755701802165,2.5,181.54,181.5,5.5095]
[1755701802464,2.5,181.54,181.51,5.5091]
[1755701803563,5.5082,181.55,181.51,5.5091]
[1755701803868,4.80832559,181.58,181.46,3.0]
[1755701804070,145.22,181.57,181.46,3.0]
[1755701804269,2.5,181.53,181.42,3.0]
[1755701804666,5.5093,181.51,181.47,5.5105]
[1755701804864,2.5,181.53,181.42,3.0]
[1755701805172,5.5093,181.51,181.47,5.5104]
[1755701805474,145.22,181.53,181.47,5.5104]
[1755701805659,2.5,181.5,181.47,5.5104]
[1755701805859,2.5,181.5,181.42,3.0]
[1755701806063,145.22,181.53,181.42,3.0]
[1755701806964,145.22,181.53,181.46,5.5106]
[1755701807174,145.22,181.53,181.42,3.0]
[1755701807373,5.5098,181.5,181.45,5.5109]
[1755701807566,2.5,181.52,181.42,3.0]
[1755701807762,147.7,181.52,181.42,3.0]
[1755701807972,5.5095,181.51,181.47,5.5104]
[1755701808784,145.2,181.52,181.42,3.0]
[1755701809167,5.5098,181.5,181.46,5.5106]
[1755701809369,145.2,181.52,181.42,3.0]
[1755701809370,2.5,181.51,181.42,3.0]
[1755701809874,2.5,181.47,181.41,0.95908721]
[1755701810174,2.5,181.47,181.38,3.0]
[1755701810376,5.5109,181.46,181.42,5.5118]
[1755701810674,2.5,181.51,181.38,3.0]
[1755701810975,4.80832559,181.72,181.37,124.32827325]
[1755701810976,2.5,181.56,181.39,3.0]
[1755701811269,2.5,181.56,181.46,5.5105]
[1755701811270,5.5095,181.51,181.46,5.5105]
[1755701811573,2.5,181.54,181.39,14.0256]
[1755701811968,2.5,181.54,181.4,3.0]
[1755701812174,4.80832559,181.53,181.4,3.0]
[1755701812568,5.509,181.52,181.48,5.51]
[1755701812770,147.68,181.54,181.43,3.0]
[1755701813172,8.0101,181.49,181.45,5.5108]
[1755701813366,2.5,181.48,181.39,3.0]
[1755701813871,4.80832559,181.53,181.39,3.0]
[1755701814075,149.96832559,181.53,181.39,3.0]
[1755701814276,2.5,181.52,181.39,3.0]
[1755701814477,4.80832559,181.49,181.39,3.0]
[1755701814678,10.31832559,181.49,181.39,3.0]
[1755701814980,4.80832559,181.49,181.39,3.0]
[1755701815175,2.5,181.52,181.39,3.0]
[1755701815373,7.30832559,181.53,181.46,5.5106]
[1755701815577,7.30832559,181.53,181.42,3.0]
[1755701815872,5.5093,181.51,181.47,5.5102]
[1755701816080,4.80832559,181.53,181.42,3.0]
[1755701816475,5.5095,181.51,181.46,5.5105]
[1755701816675,2.51,181.52,181.42,3.0]
[1755701818178,2.51,181.52,181.37,127.27827325]
[1755701818380,2.51,181.52,181.43,5.5115]
[1755701818575,2.51,181.52,181.37,3.9092855]
[1755701818776,4.80832559,181.49,181.37,2.95]
[1755701819181,4.80832559,181.51,181.37,3.90923261]
[1755701819488,4.80832559,181.51,181.43,5.5115]
[1755701820182,4.80832559,181.51,181.41,5.5123]
[1755701820382,2.51,181.5,181.37,3.90923261]
[1755701820781,2.51,181.5,181.41,5.5122]
[1755701820977,2.51,181.5,181.37,2.95]
[1755701821478,145.12,181.49,181.37,2.95]
[1755701821686,2.51,181.5,181.37,2.95]
[1755701821877,145.12,181.49,181.37,2.95]
[1755701822079,4.80832559,181.47,181.33,2.95]
[1755701822583,4.80832559,181.47,181.39,5.5127]
[1755701822779,4.80832559,181.47,181.34,2.95]
[1755701822979,2.51,181.46,181.34,2.95]
[1755701823585,2.51,181.5,181.34,2.95]
[1755701823785,2.51,181.5,181.39,2.95]
[1755701823985,147.63,181.5,181.39,2.95]
[1755701824284,147.63,181.5,181.42,5.512]
[1755701824483,147.63,181.5,181.39,2.95]
[1755701824687,147.63,181.5,181.41,5.5121]
[1755701824999,147.63,181.5,181.39,2.95]
[1755701825000,2.51,181.5,181.39,2.95]
[1755701825192,2.51,181.5,181.44,5.5112]
[1755701825399,2.51,181.5,181.39,2.95]
[1755701825787,2.51,181.5,181.46,5.5108]
[1755701826298,2.51,181.5,181.42,2.95]
[1755701826796,2.51,181.5,181.38,2.95]
[1755701827197,7.31832559,181.5,181.38,2.95]
[1755701828397,7.31832559,181.5,181.41,2.95]
[1755701828602,2.51,181.5,181.41,2.95]
[1755701830098,5.5107,181.47,181.43,5.5116]
[1755701830293,2.51,181.47,181.41,2.95]
[1755701830498,520.26832559,181.54,181.41,2.95]
[1755701830499,2.51,181.53,181.41,2.95]
[1755701831302,5.511,181.46,181.42,5.512]
[1755701831498,2.51,181.53,181.42,2.95]
[1755701832201,2.51,181.53,181.43,5.5115]
[1755701832599,2.51,181.53,181.42,2.95]
[1755701832800,5.5107,181.47,181.43,5.5116]
[1755701833001,5.5107,181.47,181.43,8.4616]
[1755701833199,2.51,181.5,181.35,2.95]
[1755701833604,147.55,181.5,181.42,2.95]
[1755701833796,2.51,181.5,181.42,2.95]
[1755701833997,147.53,181.5,181.42,2.95]
[1755701834301,2.51,181.49,181.41,2.95]
[1755701834802,5.5104,181.48,181.44,5.5114]
[1755701835199,5.5104,181.48,181.41,2.95]
[1755701835399,8.02,181.49,181.41,2.95]
[1755701835603,145.02,181.51,181.41,2.95]
[1755701836505,370.38,181.54,181.41,2.95]
[1755701836800,2.51,181.57,181.44,4.80832559]
[1755701837006,2.51,181.57,181.45,2.95]
[1755701837204,2.51,181.57,181.49,2.95]
[1755701837603,2.51,181.57,181.44,2.95]
[1755701838106,5.5087,181.53,181.5,5.5095]
[1755701838306,2.51,181.57,181.44,2.95]
[1755701838807,2.51,181.54,181.41,2.95]
[1755701839806,0.0369946,181.49,181.48,8.4602]
[1755701840302,2.51,181.58,181.48,2.95]
[1755701840705,4.184e-05,181.5,181.49,2.95]
[1755701840906,2.51,181.58,181.49,2.95]
[1755701841208,5.5076,181.57,181.54,5.5082]
[1755701841402,2.51,181.58,181.49,2.95]
[1755701842004,2.51,181.58,181.52,0.04009824]
[1755701842708,2.51,181.58,181.4,2.95]
[1755701842709,2.51,181.53,181.4,2.95]
[1755701842911,144.92,181.52,181.4,2.95]
[1755701843212,5.5099,181.49,181.4,2.95]
[1755701843809,144.92,181.52,181.4,2.95]
[1755701844208,144.92,181.52,181.44,5.5112]
[1755701844608,144.92,181.52,181.4,2.95]
[1755701844808,144.92,181.52,181.45,5.5109]
[1755701845911,144.92,181.52,181.4,2.95]
[1755701845912,144.92,181.52,181.43,2.84]
[1755701846412,2.51,181.53,181.43,2.84]
[1755701846413,147.39,181.53,181.43,2.84]
[1755701846814,2.45,181.52,181.45,5.5111]
[1755701847113,2.45,181.52,181.4,2.84]
[1755701847512,2.45,181.52,181.44,5.5113]
[1755701848008,2.45,181.52,181.45,5.5111]
[1755701848212,2.45,181.52,181.4,2.84]
[1755701848713,2.45,181.52,181.44,5.5112]
[1755701848913,2.45,181.52,181.4,2.84]
[1755701849114,2.45,181.5,181.4,2.84]
[1755701849313,2.45,181.5,181.41,5.5123]
[1755701850015,2.45,181.5,181.4,2.84]
[1755701851106,2.45,181.5,181.43,5.5115]
[1755701851309,2.45,181.5,181.4,2.84]
[1755701851618,144.84,181.53,181.4,2.84]
[1755701851808,144.84,181.53,181.47,5.5102]
[1755701852004,144.84,181.53,181.44,2.84]
[1755701852209,2.45,181.52,181.42,5.5119]
[1755701852410,144.84,181.53,181.4,2.84]
[1755701852411,2.45,181.5,181.4,2.84]
[1755701852711,2.45,181.5,181.36,7.24387109]
[1755701852915,2.45,181.5,181.36,2.84]
[1755701854614,2.45,181.5,181.38,5.5131]
[1755701855017,2.45,181.5,181.39,5.5129]
[1755701855711,2.45,181.5,181.38,5.5131]
[1755701855910,2.45,181.46,181.36,2.84]
[1755701856310,2.45,181.46,181.37,5.5135]
[1755701856512,2.45,181.44,181.36,2.84]
[1755701856710,147.25,181.44,181.37,5.5134]
[1755701856906,147.25,181.44,181.36,2.84]
[1755701858017,147.23,181.44,181.36,2.84]
[1755701858614,147.23,181.44,181.32,0.95948386]
[1755701858815,4.80832559,181.43,181.32,3.79948386]
[1755701859015,5.5131,181.39,181.32,0.95948386]
[1755701859314,5.5131,181.39,181.32,3.79948386]
[1755701859817,5.5131,181.39,181.35,8.3539]
[1755701860018,5.5127,181.4,181.35,2.84]
[1755701860216,152.03832559,181.44,181.35,8.3541]
[1755701860913,2.45,181.43,181.35,2.84]
[1755701861318,5.5129,181.4,181.35,8.354]
[1755701861708,2.45,181.43,181.32,0.95948386]
[1755701861912,2.45,181.43,181.31,2.84]
[1755701863217,2.45,181.4,181.31,2.84]
[1755701863615,5.5137,181.37,181.31,2.84]
[1755701864121,5.5137,181.37,181.33,8.3545]
[1755701864321,147.21,181.4,181.31,2.84]
[1755701864521,147.21,181.4,181.32,5.5149]
[1755701864824,144.74,181.39,181.31,2.84]
[1755701865219,2.45,181.38,181.27,3.79973525]
[1755701865417,2.45,181.38,181.27,2.84]
[1755701866022,5.5153,181.32,181.28,5.5163]
[1755701866222,5.5153,181.32,181.28,8.3563]
[1755701866522,2.45,181.38,181.29,2.84]
[1755701866827,144.74,181.41,181.29,2.84]
[1755701867632,2.45,181.4,181.29,2.84]
[1755701868128,5.5143,181.35,181.31,5.5152]
[1755701868430,2.45,181.4,181.29,2.84]
[1755701868728,5.5146,181.34,181.3,5.5156]
[1755701868927,144.74,181.41,181.24,0.95989408]
[1755701868928,2.45,181.38,181.24,0.95989408]
[1755701869126,2.45,181.38,181.23,2.84]
[1755701869320,4.80832559,181.35,181.23,2.84]
[1755701869523,2.45,181.34,181.23,2.84]
[1755701869730,144.72,181.33,181.23,2.84]
[1755701870028,2.45,181.32,181.23,2.84]
[1755701870426,2.45,181.32,181.22,2.84]
[1755701870427,144.72,181.31,181.22,2.84]
[1755701870828,144.72,181.31,181.25,5.5171]
[1755701871027,144.72,181.31,181.22,2.84]
[1755701871530,144.72,181.31,181.24,5.5174]
[1755701871729,144.72,181.31,181.22,2.84]
[1755701871930,2.45,181.32,181.25,5.5172]
[1755701872431,2.45,181.32,181.22,2.84]
[1755701872628,2.45,181.32,181.26,5.5168]
[1755701873130,4.80832559,181.34,181.25,2.84]
[1755701873333,144.7,181.33,181.25,2.84]
[1755701873826,16.55,181.43,181.25,2.84]
[1755701873827,2.45,181.41,181.25,2.84]
[1755701874920,4.80832559,181.4,181.25,2.84]
[1755701875124,2.45,181.39,181.25,2.84]
[1755701875323,2.45,181.39,181.24,4.80832559]
[1755701875324,2.45,181.39,181.31,5.5152]
[1755701875922,2.45,181.39,181.29,2.84]
[1755701876325,2.45,181.39,181.32,5.515]
[1755701876721,2.45,181.39,181.29,2.84]
[1755701877733,5.5141,181.36,181.31,5.5151]
[1755701877932,5.5141,181.36,181.29,2.84]
[1755701878326,5.5141,181.36,181.31,5.5153]
[1755701878524,2.45,181.39,181.29,2.84]
[1755701878925,2.45,181.39,181.31,5.5153]
[1755701879125,2.45,181.39,181.29,2.84]
[1755701880436,2.47,181.35,181.2,2.85]
[1755701880632,144.64,181.34,181.2,2.85]
[1755701881234,144.64,181.34,181.25,5.5172]
[1755701881436,4.80832559,181.36,181.24,2.85]
[1755701881733,5.5143,181.35,181.3,5.5154]
[1755701881933,2.47,181.39,181.2,2.85]
[1755701882135,2.47,181.39,181.24,2.85]
[1755701882336,5.5138,181.36,181.24,2.85]
[1755701882631,2.47,181.39,181.24,2.85]
[1755701882939,2.47,181.43,181.26,2.85]
[1755701883236,144.62,181.43,181.26,2.85]
[1755701883434,2.47,181.42,181.32,5.5149]
[1755701883634,2.47,181.42,181.31,2.85]
[1755701883834,2.47,181.42,181.34,5.5144]
[1755701884140,2.47,181.44,181.31,2.85]
[1755701884436,2.47,181.44,181.36,5.5138]
[1755701885938,2.47,181.44,181.31,2.85]
[1755701886135,2.47,181.4,181.31,2.85]
[1755701886635,2.47,181.44,181.31,2.85]
[1755701887039,370.44,181.45,181.31,2.85]
[1755701887246,144.58,181.46,181.31,2.85]
[1755701887740,147.05,181.46,181.41,5.5121]
[1755701888037,147.05,181.46,181.3,2.85]
[1755701888236,147.05,181.46,181.41,5.5121]
[1755701888433,144.58,181.46,181.37,2.85]
[1755701888633,2.47,181.45,181.33,2.85]
[1755701889442,2.47,181.45,181.34,5.5143]
[1755701889636,2.47,181.45,181.33,2.85]
[1755701891342,2.47,181.45,181.4,5.5125]
[1755701891545,144.58,181.46,181.41,2.85]
[1755701891743,5.5116,181.44,181.37,2.85]
[1755701892441,5.5116,181.44,181.31,4.80832559]
[1755701892442,5.5112,181.45,181.41,8.3621]
[1755701892638,2.47,181.46,181.41,8.3621]
[1755701893032,5.5112,181.45,181.41,8.3621]
[1755701893244,5.5112,181.45,181.42,5.5119]
[1755701893542,5.5112,181.45,181.39,2.85]
[1755701893742,5.5114,181.44,181.4,5.5124]
[1755701894040,146.97,181.49,181.4,2.85]
[1755701894434,144.5,181.49,181.4,2.85]
[1755701894944,144.5,181.49,181.46,5.5108]
[1755701895144,144.5,181.49,181.4,2.85]
[1755701895442,144.5,181.49,181.35,4.80832559]
[1755701895636,144.5,181.49,181.36,2.85]
[1755701895831,2.47,181.53,181.38,2.85]
[1755701896038,2.47,181.53,181.4,2.85]
[1755701896440,2.47,181.53,181.48,5.51]
[1755701896645,2.47,181.53,181.45,2.85]
[1755701896839,2.47,181.53,181.48,5.51]
[1755701897446,370.6,181.55,181.48,2.85]
[1755701898044,2.47,181.54,181.44,2.85]
[1755701898639,2.47,181.54,181.46,5.5107]
[1755701899344,2.47,181.53,181.38,11.0263]
[1755701899542,2.47,181.53,181.36,2.85]
[1755701900850,2.47,181.53,181.44,2.85]
[1755701901246,2.47,181.53,181.44,8.3613]
[1755701901545,2.47,181.53,181.44,2.85]
[1755701902248,2.47,181.53,181.38,2.85]
[1755701902744,2.47,181.53,181.45,2.85]
[1755701903344,2.47,181.53,181.48,5.5099]
[1755701904247,146.81,181.54,181.4,2.85]
[1755701904842,146.81,181.54,181.47,5.5103]
[1755701905050,5.5091,181.52,181.47,5.5103]
[1755701905352,144.34,181.54,181.44,2.85]
[1755701905558,5.5087,181.53,181.44,2.85]
[1755701906044,5.509,181.52,181.44,2.85]
[1755701906653,5.5087,181.53,181.48,5.5099]
[1755701906850,7.9687,181.53,181.44,2.85]
[1755701907251,5.509,181.52,181.48,5.5099]
[1755701907549,144.34,181.54,181.41,2.97]
[1755701907750,373.06,181.55,181.51,5.509]
[1755701907751,144.28,181.55,181.51,5.509]
[1755701907956,144.28,181.55,181.31,693.54]
[1755701907957,144.28,181.55,181.44,2.97]
[1755701908158,144.28,181.55,181.47,5.5104]
[1755701908455,144.28,181.55,181.44,2.97]
[1755701908456,149.7882,181.55,181.44,2.97]
[1755701909046,144.28,181.55,181.44,2.97]
[1755701910056,5.5089,181.53,181.44,2.97]